fUST/lending_fUST_20250715
["ID","MTS","AMOUNT","RATE_DAILY","PERIOD"]
[372265191,1752568266062,-460.0,0.00020547,2]
[372265192,1752568266071,-460.0,0.00020547,2]
[372265193,1752568266081,-460.0,0.00020547,2]
[372265194,1752568266091,-641.07,0.00020547,2]
[372265195,1752568266101,-460.0,0.00020547,2]
[372265196,1752568266110,-460.0,0.00020547,2]
[372265197,1752568266120,-460.0,0.00020547,2]
[372265198,1752568266129,-460.0,0.00020547,2]
[372265199,1752568266139,-542.44,0.00020547,2]
[372265200,1752568266149,-443.45,0.00020547,2]
[372265201,1752568266163,-460.0,0.00020547,2]
[372265202,1752568266172,-460.0,0.00020547,2]
[372265203,1752568266182,-460.0,0.00020547,2]
[372265204,1752568266191,-460.0,0.00020547,2]
[372265205,1752568266201,-460.0,0.00020547,2]
[372265206,1752568266210,-517.74,0.00020547,2]
[372265207,1752568266219,-460.0,0.00020547,2]
[372265208,1752568266229,-460.0,0.00020547,2]
[372265209,1752568266238,-460.0,0.00020547,2]
[372265210,1752568266247,-777.99,0.00020547,2]
[372265211,1752568266258,-460.0,0.00020547,2]
[372265212,1752568266267,-460.0,0.00020547,2]
[372265213,1752568266278,-460.0,0.00020547,2]
[372265214,1752568266288,-460.0,0.00020547,2]
[372265215,1752568266297,-151.0,0.00020547,2]
[372265216,1752568266307,-460.0,0.00020547,2]
[372265217,1752568266317,-592.01,0.00020547,2]
[372265218,1752568266326,-460.0,0.00020547,2]
[372265219,1752568266336,-460.0,0.00020547,2]
[372265220,1752568266345,-1000.75,0.00020547,2]
[372265221,1752568266355,-460.0,0.00020547,2]
[372265222,1752568266365,-906.02,0.00020547,2]
[372265223,1752568266375,-460.0,0.00020547,2]
[372265224,1752568266384,-460.0,0.00020547,2]
[372265225,1752568266393,-460.0,0.00020547,2]
[372265226,1752568266403,-478.18,0.00020547,2]
[372265227,1752568266412,-460.0,0.00020547,2]
[372265228,1752568266421,-460.0,0.00020547,2]
[372265229,1752568266431,-473.8056111,0.00020547,2]
[372265230,1752568266440,-460.0,0.00020547,2]
[372265231,1752568266450,-501.02,0.00020547,2]
[372265232,1752568266462,-460.0,0.00020547,2]
[372265233,1752568266472,-460.0,0.00020547,2]
[372265234,1752568266482,-460.0,0.00020547,2]
[372265235,1752568266491,-460.0,0.00020547,2]
[372265236,1752568266500,-460.0,0.00020547,2]
[372265237,1752568266510,-1045.04,0.00020547,2]
[372265238,1752568266520,-460.0,0.00020547,2]
[372265239,1752568266530,-479.16,0.00020547,2]
[372265240,1752568266539,-460.0,0.00020547,2]
[372265241,1752568266549,-460.0,0.00020547,2]
[372265242,1752568266558,-489.91246802,0.00020547,2]
[372265243,1752568266568,-460.0,0.00020547,2]
[372265244,1752568266578,-454.93113408,0.00020547,2]
[372265245,1752568266587,-460.0,0.00020547,2]
[372265246,1752568266597,-460.0,0.00020547,2]
[372265247,1752568266606,-460.0,0.00020547,2]
[372265248,1752568266616,-460.0,0.00020547,2]
[372265249,1752568266625,-460.0,0.00020547,2]
[372265250,1752568266635,-460.0,0.00020547,2]
[372265251,1752568266644,-460.0,0.00020547,2]
[372265252,1752568266654,-460.0,0.00020547,2]
[372265253,1752568266664,-460.0,0.00020547,2]
[372265254,1752568266673,-460.0,0.00020547,2]
[372265255,1752568266683,-797.85,0.00020547,2]
[372265256,1752568266693,-1013.19,0.00020547,2]
[372265257,1752568266703,-460.0,0.00020547,2]
[372265258,1752568266713,-460.0,0.00020547,2]
[372265259,1752568266722,-521.25,0.00020547,2]
[372265260,1752568266732,-460.0,0.00020547,2]
[372265261,1752568266742,-460.0,0.00020547,2]
[372265262,1752568266752,-460.0,0.00020547,2]
[372265263,1752568266761,-460.0,0.00020547,2]
[372265264,1752568266771,-460.0,0.00020547,2]
[372265265,1752568266781,-352.26631225,0.00020547,2]
[372265266,1752568266790,-2728.73,0.00020547,2]
[372265267,1752568266800,-460.0,0.00020547,2]
[372265268,1752568266810,-460.0,0.00020547,2]
[372265269,1752568266820,-496.29,0.00020547,2]
[372265270,1752568266829,-460.0,0.00020547,2]
[372265271,1752568266839,-1064.98,0.00020547,2]
[372265272,1752568266850,-460.0,0.00020547,2]
[372265273,1752568266861,-460.0,0.00020547,2]
[372265274,1752568266871,-561.74386622,0.00020547,2]
[372265275,1752568266880,-460.0,0.00020547,2]
[372265276,1752568266890,-460.0,0.00020547,2]
[372265277,1752568266899,-460.0,0.00020547,2]
[372265278,1752568266908,-791.68,0.00020547,2]
[372265279,1752568266921,-460.0,0.00020547,2]
[372265280,1752568266930,-460.0,0.00020547,2]
[372265281,1752568266940,-460.0,0.00020547,2]
[372265282,1752568266950,-460.0,0.00020547,2]
[372265283,1752568266959,-460.0,0.00020547,2]
[372265284,1752568266970,-727.92,0.00020547,2]
[372265285,1752568266979,-667.4,0.00020547,2]
[372265286,1752568266990,-7923.04,0.00020547,2]
[372265287,1752568267002,-1767.68,0.00020547,2]
[372265288,1752568267012,-460.0,0.00020547,2]
[372265289,1752568267022,-460.0,0.00020547,2]
[372265290,1752568267033,-7077.23,0.00020547,2]
[372265291,1752568267047,-1795.0,0.00020547,2]
[372265292,1752568267057,-460.0,0.00020547,2]
[372265293,1752568267066,-2005.5,0.00020547,2]
[372265294,1752568267076,-460.0,0.00020547,2]
[372265295,1752568267087,-473.13471117,0.00020547,2]
[372265296,1752568267096,-460.0,0.00020547,2]
[372265297,1752568267105,-460.0,0.00020547,2]
[372265298,1752568267115,-460.0,0.00020547,2]
[372265300,1752568267237,-460.0,0.00020547,2]
[372265301,1752568267247,-460.0,0.00020547,2]
[372265302,1752568267257,-460.0,0.00020547,2]
[372265303,1752568267266,-460.0,0.00020547,2]
[372265304,1752568267275,-551.26785098,0.00020547,2]
[372265305,1752568267287,-460.0,0.00020547,2]
[372265306,1752568267296,-1108.93,0.00020547,2]
[372265307,1752568267306,-460.0,0.00020547,2]
[372265308,1752568267315,-2528.48,0.00020547,2]
[372265309,1752568267324,-460.0,0.00020547,2]
[372265310,1752568267334,-460.0,0.00020547,2]
[372265311,1752568267343,-460.0,0.00020547,2]
[372265312,1752568267353,-5262.85,0.00020547,2]
[372265313,1752568267362,-460.0,0.00020547,2]
[372265314,1752568267371,-649.45,0.00020547,2]
[372265315,1752568267381,-460.0,0.00020547,2]
[372265316,1752568267391,-460.0,0.00020547,2]
[372265317,1752568267401,-460.0,0.00020547,2]
[372265318,1752568267410,-516.15,0.00020547,2]
[372265319,1752568267419,-460.0,0.00020547,2]
[372265320,1752568267428,-460.0,0.00020547,2]
[372265321,1752568267437,-509.44,0.00020547,2]
[372265322,1752568267446,-935.3,0.00020547,2]
[372265323,1752568267456,-1072.07,0.00020547,2]
[372265324,1752568267465,-460.0,0.00020547,2]
[372265325,1752568267475,-462.8780156,0.00020547,2]
[372265326,1752568267485,-460.0,0.00020547,2]
[372265327,1752568267494,-962.23,0.00020547,2]
[372265328,1752568267503,-460.0,0.00020547,2]
[372265329,1752568267513,-1205.09,0.00020547,2]
[372265330,1752568267522,-8553.46,0.00020547,2]
[372265331,1752568267532,-2434.39,0.00020547,2]
[372265332,1752568267541,-460.0,0.00020547,2]
[372265333,1752568267551,-460.0,0.00020547,2]
[372265334,1752568267560,-460.0,0.00020547,2]
[372265335,1752568267570,-460.0,0.00020547,2]
[372265336,1752568267579,-865.81,0.00020547,2]
[372265337,1752568267588,-592.14,0.00020547,2]
[372265338,1752568267598,-460.0,0.00020547,2]
[372265339,1752568267607,-924.63,0.00020547,2]
[372265340,1752568267617,-4180.58,0.00020547,2]
[372265341,1752568267626,-616.25,0.00020547,2]
[372265342,1752568267636,-460.0,0.00020547,2]
[372265343,1752568267645,-1533.03,0.00020547,2]
[372265344,1752568267654,-460.0,0.00020547,2]
[372265345,1752568267663,-688.33,0.00020547,2]
[372265346,1752568267672,-460.0,0.00020547,2]
[372265347,1752568267681,-648.63,0.00020547,2]
[372265348,1752568267691,-886.34,0.00020547,2]
[372265349,1752568267701,-966.64,0.00020547,2]
[372265350,1752568267711,-460.0,0.00020547,2]
[372265351,1752568267720,-460.0,0.00020547,2]
[372265352,1752568267730,-151.0,0.00020547,2]
[372265353,1752568267739,-460.0,0.00020547,2]
[372265354,1752568267749,-1951.24,0.00020547,2]
[372265355,1752568267758,-460.0,0.00020547,2]
[372265356,1752568267768,-210.121863,0.00020547,2]
[372265357,1752568267778,-689.19,0.00020547,2]
[372265358,1752568267788,-460.0,0.00020547,2]
[372265359,1752568267797,-210.121863,0.00020547,2]
[372265360,1752568267806,-460.0,0.00020547,2]
[372265361,1752568267815,-460.0,0.00020547,2]
[372265362,1752568267825,-460.0,0.00020547,2]
[372265363,1752568267835,-460.0,0.00020547,2]
[372265364,1752568267845,-460.0,0.00020547,2]
[372265365,1752568267855,-2572.3,0.00020547,2]
[372265366,1752568267864,-460.0,0.00020547,2]
[372265367,1752568267875,-460.0,0.00020547,2]
[372265368,1752568267884,-460.0,0.00020547,2]
[372265369,1752568267894,-296.14996238,0.00020547,2]
[372265370,1752568267904,-518.31,0.00020547,2]
[372265372,1752568267914,-460.0,0.00020547,2]
[372265373,1752568267927,-460.0,0.00020547,2]
[372265374,1752568267937,-460.0,0.00020547,2]
[372265375,1752568267946,-922.11,0.00020547,2]
[372265376,1752568267957,-477.88,0.00020547,2]
[372265377,1752568267969,-1848.23,0.00020547,2]
[372265378,1752568267979,-176.04,0.00020547,2]
[372265379,1752568267990,-7815.44,0.00020547,2]
[372265380,1752568268000,-1098.55,0.00020547,2]
[372265381,1752568268010,-460.0,0.00020547,2]
[372265382,1752568268020,-460.0,0.00020547,2]
[372265383,1752568268029,-600.27,0.00020547,2]
[372265385,1752568268039,-5336.44353366,0.00020549,2]
[372265386,1752568268048,-525.51022752,0.00020566,2]
[372265387,1752568268057,-215.50840239,0.00020566,2]
[372265388,1752568268067,-160.0,0.00020566,2]
[372265389,1752568268077,-160.0,0.00020566,2]
[372265390,1752568268087,-160.0,0.00020566,2]
[372265391,1752568268096,-160.0,0.00020566,2]
[372265392,1752568268107,-230.76969291,0.00020566,2]
[372265393,1752568268117,-160.0,0.00020566,2]
[372265394,1752568268126,-214.37129034,0.00020566,2]
[372265395,1752568268136,-838.84061749,0.00020566,2]
[372265396,1752568268145,-468.75,0.00020566,2]
[372265397,1752568268155,-12603.13032295,0.00020566,2]
[372265398,1752568268164,-1500.0,0.00020568,2]
[372265399,1752568268174,-1503.52662773,0.00020568,2]
[372265400,1752568268184,-1500.0,0.00020568,2]
[372265401,1752568268196,-1500.0,0.00020568,2]
[372265402,1752568268205,-506.39072393,0.00020568,2]
[372265403,1752568268214,-604.31728,0.00020568,2]
[372265404,1752568268224,-1505.63930367,0.00020568,2]
[372265405,1752568268235,-1500.0,0.00020568,2]
[372265406,1752568268245,-1500.0,0.00020568,2]
[372265407,1752568268255,-709.02065604,0.00020568,2]
[372265408,1752568268264,-1005.23073662,0.00020568,2]
[372265409,1752568268273,-1005.39614656,0.00020568,2]
[372265410,1752568268284,-500.0,0.00020573,2]
[372265411,1752568268293,-12039.6221253,0.0002059,3]
[372265412,1752568268304,-151.0,0.000206,3]
[372265413,1752568268315,-151.0,0.000206,2]
[372265414,1752568268323,-151.0,0.000206,2]
[372265415,1752568268333,-249.030144,0.000206,2]
[372265416,1752568268342,-165.979699,0.000206,2]
[372265417,1752568268353,-165.979699,0.000206,2]
[372265418,1752568268362,-151.0,0.000206,2]
[372265419,1752568268372,-151.0,0.000206,2]
[372265420,1752568268381,-620.0,0.00020602,2]
[372265421,1752568268391,-303.0,0.00020602,2]
[372265422,1752568268400,-420.0,0.00020602,2]
[372265423,1752568268409,-1073.35999234,0.00020616,2]
[372265424,1752568268419,-2000.0,0.00020616,2]
[372265425,1752568268429,-511.26068992,0.00020616,2]
[372265426,1752568268438,-2000.0,0.00020616,2]
[372265427,1752568268449,-500.0,0.00020643,2]
[372265428,1752568268459,-1680.0,0.00020702,2]
[372265429,1752568268469,-17073.12610464,0.00020739,2]
[372265430,1752568268479,-712.59387777,0.00020743,2]
[372265431,1752568268488,-5000.0,0.00020787,2]
[372265432,1752568268497,-157.333192,0.00020788,2]
[372265433,1752568268507,-157.333192,0.00020788,2]
[372265434,1752568268516,-500.0,0.00020794,2]
[372265435,1752568268525,-500.0,0.00020794,2]
[372265436,1752568268536,-500.0,0.00020794,2]
[372265437,1752568268545,-500.0,0.00020794,2]
[372265438,1752568268564,-260.0,0.00020806,2]
[372265439,1752568268576,-604.836,0.00020807,2]
[372265440,1752568268586,-178.195,0.00020807,2]
[372265441,1752568268596,-356.65993412,0.00020816,2]
[372265442,1752568268607,-215.92228505,0.0002082,2]
[372265443,1752568268618,-460.0,0.00020821,2]
[372265444,1752568268628,-460.0,0.00020821,2]
[372265445,1752568268638,-460.0,0.00020821,2]
[372265446,1752568268647,-362.18410458,0.00020821,2]
[372265447,1752568268657,-217.28544719,0.00020821,2]
[372265448,1752568268667,-460.0,0.00020821,2]
[372265449,1752568268676,-460.0,0.00020821,2]
[372265450,1752568268685,-460.0,0.00020821,2]
[372265451,1752568268695,-460.0,0.00020821,2]
[372265452,1752568268704,-151.0,0.00020821,2]
[372265453,1752568268714,-460.0,0.00020821,2]
[372265454,1752568268723,-280.99292299,0.00020821,2]
[372265456,1752568268733,-460.0,0.00020821,2]
[372265457,1752568268744,-460.0,0.00020821,2]
[372265458,1752568268753,-460.0,0.00020821,2]
[372265459,1752568268762,-474.04,0.00020821,2]
[372265460,1752568268772,-460.0,0.00020821,2]
[372265461,1752568268783,-359.11428752,0.00020821,2]
[372265462,1752568268792,-460.0,0.00020821,2]
[372265463,1752568268802,-460.0,0.00020821,2]
[372265464,1752568268811,-460.0,0.00020821,2]
[372265465,1752568268821,-945.03,0.00020821,2]
[372265466,1752568268831,-481.77,0.00020821,2]
[372265467,1752568268840,-460.0,0.00020821,2]
[372265468,1752568268850,-460.0,0.00020821,2]
[372265469,1752568268860,-460.0,0.00020821,2]
[372265470,1752568268869,-641.07,0.00020821,2]
[372265471,1752568268879,-460.0,0.00020821,2]
[372265472,1752568268888,-460.0,0.00020821,2]
[372265473,1752568268898,-460.0,0.00020821,2]
[372265474,1752568268909,-460.0,0.00020821,2]
[372265475,1752568268922,-542.44,0.00020821,2]
[372265476,1752568268932,-460.0,0.00020821,2]
[372265477,1752568268941,-460.0,0.00020821,2]
[372265478,1752568268952,-460.0,0.00020821,2]
[372265479,1752568268962,-460.0,0.00020821,2]
[372265480,1752568268973,-517.74,0.00020821,2]
[372265481,1752568268982,-460.0,0.00020821,2]
[372265482,1752568268993,-460.0,0.00020821,2]
[372265483,1752568269003,-460.0,0.00020821,2]
[372265484,1752568269013,-777.99,0.00020821,2]
[372265485,1752568269023,-460.0,0.00020821,2]
[372265486,1752568269033,-460.0,0.00020821,2]
[372265487,1752568269042,-460.0,0.00020821,2]
[372265488,1752568269052,-460.0,0.00020821,2]
[372265489,1752568269061,-592.01,0.00020821,2]
[372265490,1752568269071,-460.0,0.00020821,2]
[372265491,1752568269080,-1000.75,0.00020821,2]
[372265492,1752568269090,-460.0,0.00020821,2]
[372265493,1752568269100,-906.02,0.00020821,2]
[372265494,1752568269110,-460.0,0.00020821,2]
[372265495,1752568269119,-460.0,0.00020821,2]
[372265496,1752568269129,-478.18,0.00020821,2]
[372265497,1752568269139,-460.0,0.00020821,2]
[372265498,1752568269148,-460.0,0.00020821,2]
[372265499,1752568269161,-460.0,0.00020821,2]
[372265500,1752568269170,-501.02,0.00020821,2]
[372265501,1752568269179,-460.0,0.00020821,2]
[372265502,1752568269193,-460.0,0.00020821,2]
[372265503,1752568269203,-460.0,0.00020821,2]
[372265504,1752568269212,-179.99235221,0.00020821,2]
[372265505,1752568269222,-1045.04,0.00020821,2]
[372265506,1752568269231,-460.0,0.00020821,2]
[372265507,1752568269241,-479.16,0.00020821,2]
[372265508,1752568269251,-460.0,0.00020821,2]
[372265509,1752568269262,-460.0,0.00020821,2]
[372265510,1752568269272,-460.0,0.00020821,2]
[372265511,1752568269281,-460.0,0.00020821,2]
[372265512,1752568269291,-460.0,0.00020821,2]
[372265513,1752568269301,-460.0,0.00020821,2]
[372265514,1752568269311,-460.0,0.00020821,2]
[372265515,1752568269321,-362.86881913,0.00020821,2]
[372265516,1752568269331,-450.0,0.00020821,2]
[372265517,1752568269340,-460.0,0.00020821,2]
[372265518,1752568269350,-460.0,0.00020821,2]
[372265519,1752568269359,-797.85,0.00020821,2]
[372265520,1752568269369,-1013.19,0.00020821,2]
[372265521,1752568269379,-460.0,0.00020821,2]
[372265522,1752568269388,-460.0,0.00020821,2]
[372265523,1752568269398,-460.0,0.00020821,2]
[372265524,1752568269407,-460.0,0.00020821,2]
[372265525,1752568269417,-460.0,0.00020821,2]
[372265526,1752568269427,-460.0,0.00020821,2]
[372265527,1752568269437,-460.0,0.00020821,2]
[372265528,1752568269446,-2728.73,0.00020821,2]
[372265529,1752568269455,-460.0,0.00020821,2]
[372265530,1752568269465,-460.0,0.00020821,2]
[372265531,1752568269475,-496.29,0.00020821,2]
[372265532,1752568269486,-460.0,0.00020821,2]
[372265533,1752568269495,-1064.98,0.00020821,2]
[372265534,1752568269505,-565.50399277,0.00020821,2]
[372265535,1752568269515,-460.0,0.00020821,2]
[372265536,1752568269525,-460.0,0.00020821,2]
[372265537,1752568269535,-460.0,0.00020821,2]
[372265538,1752568269545,-460.0,0.00020821,2]
[372265539,1752568269554,-791.68,0.00020821,2]
[372265540,1752568269564,-460.0,0.00020821,2]
[372265541,1752568269574,-460.0,0.00020821,2]
[372265542,1752568269583,-460.0,0.00020821,2]
[372265543,1752568269593,-460.0,0.00020821,2]
[372265544,1752568269603,-460.0,0.00020821,2]
[372265545,1752568269612,-727.92,0.00020821,2]
[372265547,1752568269622,-667.4,0.00020821,2]
[372265548,1752568269632,-7923.04,0.00020821,2]
[372265549,1752568269645,-1767.68,0.00020821,2]
[372265550,1752568269655,-460.0,0.00020821,2]
[372265551,1752568269666,-460.0,0.00020821,2]
[372265552,1752568269676,-7077.23,0.00020821,2]
[372265553,1752568269685,-1795.0,0.00020821,2]
[372265554,1752568269695,-460.0,0.00020821,2]
[372265555,1752568269706,-2005.5,0.00020821,2]
[372265556,1752568269718,-460.0,0.00020821,2]
[372265557,1752568269730,-460.0,0.00020821,2]
[372265558,1752568269741,-460.0,0.00020821,2]
[372265559,1752568269751,-460.0,0.00020821,2]
[372265560,1752568269763,-460.0,0.00020821,2]
[372265561,1752568269774,-460.0,0.00020821,2]
[372265562,1752568269786,-460.0,0.00020821,2]
[372265563,1752568269957,-460.0,0.00020821,2]
[372265564,1752568269970,-460.0,0.00020821,2]
[372265565,1752568269981,-1108.93,0.00020821,2]
[372265566,1752568269991,-460.0,0.00020821,2]
[372265567,1752568270001,-2528.48,0.00020821,2]
[372265568,1752568270012,-460.0,0.00020821,2]
[372265569,1752568270021,-460.0,0.00020821,2]
[372265570,1752568270031,-460.0,0.00020821,2]
[372265571,1752568270045,-5262.85,0.00020821,2]
[372265572,1752568270055,-460.0,0.00020821,2]
[372265573,1752568270065,-649.45,0.00020821,2]
[372265574,1752568270075,-460.0,0.00020821,2]
[372265575,1752568270085,-460.0,0.00020821,2]
[372265576,1752568270094,-516.15,0.00020821,2]
[372265577,1752568270104,-460.0,0.00020821,2]
[372265578,1752568270114,-460.0,0.00020821,2]
[372265579,1752568270124,-509.44,0.00020821,2]
[372265580,1752568270134,-460.0,0.00020821,2]
[372265581,1752568270143,-935.3,0.00020821,2]
[372265582,1752568270152,-1072.07,0.00020821,2]
[372265583,1752568270165,-460.0,0.00020821,2]
[372265584,1752568270175,-460.0,0.00020821,2]
[372265585,1752568270185,-962.23,0.00020821,2]
[372265586,1752568270195,-460.0,0.00020821,2]
[372265587,1752568270205,-1205.09,0.00020821,2]
[372265588,1752568270216,-8553.46,0.00020821,2]
[372265589,1752568270226,-2434.39,0.00020821,2]
[372265590,1752568270235,-460.0,0.00020821,2]
[372265591,1752568270246,-460.0,0.00020821,2]
[372265592,1752568270255,-460.0,0.00020821,2]
[372265593,1752568270265,-460.0,0.00020821,2]
[372265594,1752568270275,-865.81,0.00020821,2]
[372265595,1752568270286,-592.14,0.00020821,2]
[372265596,1752568270296,-460.0,0.00020821,2]
[372265597,1752568270305,-924.63,0.00020821,2]
[372265598,1752568270315,-4180.58,0.00020821,2]
[372265599,1752568270325,-151.0,0.00020821,2]
[372265600,1752568270335,-616.25,0.00020821,2]
[372265601,1752568270344,-460.0,0.00020821,2]
[372265602,1752568270353,-1533.03,0.00020821,2]
[372265603,1752568270365,-460.0,0.00020821,2]
[372265604,1752568270377,-688.33,0.00020821,2]
[372265605,1752568270386,-465.23061377,0.00020821,2]
[372265606,1752568270396,-648.63,0.00020821,2]
[372265607,1752568270405,-886.34,0.00020821,2]
[372265608,1752568270415,-966.64,0.00020821,2]
[372265609,1752568270425,-460.0,0.00020821,2]
[372265610,1752568270435,-460.0,0.00020821,2]
[372265611,1752568270444,-460.0,0.00020821,2]
[372265612,1752568270454,-1951.24,0.00020821,2]
[372265613,1752568270463,-460.0,0.00020821,2]
[372265614,1752568270472,-689.19,0.00020821,2]
[372265615,1752568270483,-460.0,0.00020821,2]
[372265616,1752568270492,-460.0,0.00020821,2]
[372265617,1752568270502,-460.0,0.00020821,2]
[372265618,1752568270513,-460.0,0.00020821,2]
[372265619,1752568270522,-460.0,0.00020821,2]
[372265620,1752568270533,-2572.3,0.00020821,2]
[372265621,1752568270543,-460.0,0.00020821,2]
[372265622,1752568270553,-460.0,0.00020821,2]
[372265623,1752568270563,-460.0,0.00020821,2]
[372265624,1752568270572,-518.31,0.00020821,2]
[372265625,1752568270584,-460.0,0.00020821,2]
[372265626,1752568270594,-460.0,0.00020821,2]
[372265627,1752568270605,-922.11,0.00020821,2]
[372265628,1752568270617,-477.88,0.00020821,2]
[372265629,1752568270627,-1848.23,0.00020821,2]
[372265630,1752568270638,-7815.44,0.00020821,2]
[372265631,1752568270649,-1098.55,0.00020821,2]
[372265632,1752568270660,-460.0,0.00020821,2]
[372265633,1752568270670,-460.0,0.00020821,2]
[372265634,1752568270681,-600.27,0.00020821,2]
[372265635,1752568270690,-12039.6221253,0.00020831,4]
[372265636,1752568270700,-157.333192,0.00020884,2]
[372265637,1752568270710,-157.333192,0.00020884,2]
[372265638,1752568270719,-249.79353952,0.000209,2]
[372265639,1752568270730,-500.0,0.00020917,2]
[372265640,1752568270740,-10000.0,0.00021,5]
[372265641,1752568270750,-542.42549754,0.00021,2]
[372265642,1752568270759,-9317.72446714,0.00021,2]
[372265643,1752568270769,-269.90181322,0.00021,2]
[372265644,1752568270781,-133619.60154179,0.00021,3]
[372265645,1752568270790,-242794.80702282,0.00021,15]
[372265646,1752568270799,-654.45105398,0.00021,2]
[372265647,1752568270809,-151.0,0.00021032,2]
[372265648,1752568270819,-210.121863,0.00021032,2]
[372265649,1752568270829,-210.121863,0.00021032,2]
[372265650,1752568270839,-151.0,0.00021032,2]
[372265651,1752568270848,-25000.0,0.00021032,2]
[372265652,1752568270857,-1500.0,0.00021068,2]
[372265653,1752568270866,-1500.0,0.00021068,2]
[372265654,1752568270876,-12039.6221253,0.00021072,4]
[372265655,1752568270885,-151.0,0.00021082,2]
[372265656,1752568270895,-151.0,0.00021082,2]
[372265657,1752568270906,-680.083982,0.00021082,2]
[372265658,1752568270917,-680.083982,0.00021082,2]
[372265659,1752568270933,-460.0,0.00021095,2]
[372265660,1752568270943,-460.0,0.00021095,2]
[372265661,1752568270953,-157.333192,0.00021095,2]
[372265662,1752568270964,-157.333183,0.00021095,2]
[372265663,1752568270982,-460.0,0.00021095,2]
[372265664,1752568270996,-416.70141312,0.00021095,2]
[372265665,1752568271006,-460.0,0.00021095,2]
[372265666,1752568271016,-460.0,0.00021095,2]
[372265667,1752568271025,-460.0,0.00021095,2]
[372265668,1752568271035,-460.0,0.00021095,2]
[372265669,1752568271045,-610.125495,0.00021095,2]
[372265670,1752568271054,-588.73363301,0.00021095,2]
[372265671,1752568271064,-610.125495,0.00021095,2]
[372265672,1752568271074,-460.0,0.00021095,2]
[372265673,1752568271084,-474.04,0.00021095,2]
[372265674,1752568271093,-460.0,0.00021095,2]
[372265675,1752568271103,-460.0,0.00021095,2]
[372265676,1752568271113,-460.0,0.00021095,2]
[372265677,1752568271123,-945.03,0.00021095,2]
[372265678,1752568271134,-460.0,0.00021095,2]
[372265679,1752568271144,-460.0,0.00021095,2]
[372265680,1752568271154,-641.07,0.00021095,2]
[372265681,1752568271163,-460.0,0.00021095,2]
[372265682,1752568271173,-460.0,0.00021095,2]
[372265683,1752568271183,-460.0,0.00021095,2]
[372265684,1752568271193,-460.0,0.00021095,2]
[372265685,1752568271203,-542.44,0.00021095,2]
[372265686,1752568271212,-460.0,0.00021095,2]
[372265687,1752568271222,-460.0,0.00021095,2]
[372265688,1752568271232,-460.0,0.00021095,2]
[372265689,1752568271241,-460.0,0.00021095,2]
[372265690,1752568271251,-517.74,0.00021095,2]
[372265691,1752568271261,-460.0,0.00021095,2]
[372265692,1752568271271,-460.0,0.00021095,2]
[372265693,1752568271281,-465.09424804,0.00021095,2]
[372265694,1752568271290,-777.99,0.00021095,2]
[372265695,1752568271300,-460.0,0.00021095,2]